Cogmind - Beta 16.1 @@@ ROGUE MODE // 2026.04.24 @ 00:58:11 Player: Bereft Result: Destroyed by U5-AGF(g) with Salvaging Laser Performance ------------- Evolutions (0) 0 Regions Visited (3) 600 Robots Destroyed (1) 5 Value Destroyed (49) 49 Prototype IDs (19) 380 Alien Tech Used (0) 0 Bonus (800) 800 TOTAL SCORE: 1834 Bonus ------- Registered with UFD 300 Met Optimus in HQ 500 Cogmind --------- Core Integrity 0/250 Matter 300/300 Energy 49/100 System Corruption 5% Temperature Cool (8) Movement Walking (90) Location -9/Scraptown Parts ------- > --- POWER (1) -------- (None) > --- PROPULSION (2) --- VSS Leg > --- UTILITY (2) ------ Weight Redist. System > --- WEAPON (2) ------- (None) > --- INVENTORY (5) ---- Jamming Amplifier A0-MCA's Component Scanner Mapping Drone Bay (3/3) Peak State ------------ > --- POWER ------------ Light Fission Core > --- PROPULSION ------- Aluminum Leg Aluminum Leg > --- UTILITY ---------- Scrap Suit > --- WEAPON ----------- Battle Rifle Plasma Cutter > --- INVENTORY -------- Jamming Amplifier A0-MCA's Component Scanner Mapping Drone Bay [Rating: 21] Favorites ----------- Power Ion Engine Engine Ion Engine Power Core Light Fission Core Propulsion Aluminum Leg Leg Aluminum Leg Utility Small Storage Unit Device Sensor Array Storage Small Storage Unit Weapon Battle Rifle Energy Gun Medium Laser Ballistic Gun Battle Rifle Special Weapon Flamer Build | -11 -10 -10 -9 ------- Run | Yrd Mat Sub Scr Slots Evolved . | . . . . Power . | . . . . Propulsion . | . . . . Utility . | . . . . Weapon . | . . . . Parts Attached 18 | 6 . . 12 Power 2 | 1 . . 1 Engine 1 | 1 . . . Core 1 | . . . 1 Reactor . | . . . . Propulsion 5 | 2 . . 3 Treads . | . . . . Leg 5 | 2 . . 3 Wheel . | . . . . Hover . | . . . . Flight . | . . . . Utility 5 | 1 . . 4 Device 4 | . . . 4 Storage 1 | 1 . . . Processor . | . . . . Hackware . | . . . . Protection . | . . . . Artifact . | . . . . Weapon 6 | 2 . . 4 Energy Gun 1 | 1 . . . Energy Cannon . | . . . . Ballistic Gun 3 | 1 . . 2 Ballistic Cannon . | . . . . Launcher . | . . . . Special Weapon 2 | . . . 2 Impact Weapon . | . . . . Slashing Weapon . | . . . . Piercing Weapon . | . . . . Special Melee Weapon . | . . . . Unidentified Prototypes . | . . . . Parts Lost 3 | . . . 3 Power 1 | . . . 1 Propulsion . | . . . . Utility 1 | . . . 1 Weapon 1 | . . . 1 Highest Loss Streak 2 | . . . 2 To Critical Strikes . | . . . . Average Backups 6 | . . 3 7 Power . | . . . . Propulsion . | . . . . Utility 2 | . . . 3 Weapon 2 | . . 3 2 Tool/Special . | . . . . Unused Backups 9 | . . . 9 Power . | . . . . Propulsion . | . . . . Utility 5 | . . . 5 Weapon 2 | . . . 2 Tool/Special 2 | . . . 2 Average Slot Usage (%) 90 | . 85 57 94 Engine 7 | . 14 14 6 Core 6 | . . . 7 Leg 27 | . 28 28 27 Device 11 | . . . 13 Storage 13 | . 14 14 13 Ballistic Gun 11 | . 14 . 12 Special Weapon 10 | . . . 12 Peak Build Rating 21 | 6 6 5 21 Average Rating 11 | 4 6 4 12 On Entrance 4 | . 6 6 5 Avg Prop Armor Cover (%) 9 | . . . 9 Naked Turns 26 | . . . 26 Heaviest Build 17 | 13 13 10 17 Greatest Support 38 | 20 20 20 38 Greatest Overweight (x) 1 | . . . 1 Average Overweight (x) . | . . . . Largest Inventory Capacity 8 | 8 8 8 8 Average Capacity 7 | 7 8 8 7 Most Carried 8 | . . 6 8 Average Carried 6 | . . 3 7 Final Capacity 8 | 8 8 8 5 Final Carried 6 | . . 6 3 Scrap Suit Usage (%) 1 | . . . 1 Class Distribution -------------------- 98% | Mutant Dominant Class ---------------- Mutant | -10/Materials Mutant | -10/Subcaves Mutant | -9/Scraptown Resources | -11 -10 -10 -9 ----------- Run | Yrd Mat Sub Scr Matter Collected 449 | 251 . 9 189 Remotely . | . . . . Salvage Created 70 | . . . 70 Parts 6 | . . . 6 Haulers Intercepted . | . . . . Recyclers Shooed . | . . . . Parts Field Recycled . | . . . . Retrieved Matter . | . . . . Parts Self-Destructed 10 | . . 9 1 Prevented . | . . . . Parts Restored . | . . . . Kills | -11 -10 -10 -9 ------- Run | Yrd Mat Sub Scr Combat Hostiles Destroyed 1 | . . . 1 Guns 1 | . . . 1 Classes Destroyed 1 | . . . 1 Scrapper 1 | . . . 1 Best Kill Streak 1 | . . . 1 Combat Bots Only 1 | . . . 1 Max Kills in Single Turn 1 | . . . 1 Gunslinging . | . . . . Exploded . | . . . . Melee . | . . . . Uniques/NPCs Destroyed . | . . . . Combat | -11 -10 -10 -9 -------- Run | Yrd Mat Sub Scr Hostile Shots Fired 94 | . . . 94 Missed 36 | . . . 36 Hits 58 | . . . 58 Projectile 58 | . . . 58 Critical Strikes 1 | . . . 1 Damage Taken 585 | . . . 585 Core 251 | . . . 251 Absorbed by Shields . | . . . . Core Remaining (%) 100 | 100 . . . Volleys Fired 10 | 2 . . 8 Largest 1 | 1 . . 1 Hottest 50 | 50 . . 30 Shots Fired 10 | 2 . . 8 Gun 10 | 2 . . 8 Cannon . | . . . . Launcher . | . . . . Special . | . . . . Kinetic 8 | . . . 8 Thermal 2 | 2 . . . Explosive . | . . . . Electromagnetic . | . . . . Robot Hit Streak 3 | 1 . . 3 Robot Miss Streak 1 | 1 . . 1 Penetration Max . | . . . . Secondary Targets . | . . . . Shots Hit Robots 5 | 1 . . 4 Core Hits 3 | 1 . . 2 Critical Kills . | . . . . Critical Parts Destroyed . | . . . . Critical Strikes 1 | 1 . . . Burn 1 | 1 . . . Melee Attacks . | . . . . Impact . | . . . . Slashing . | . . . . Piercing . | . . . . Sneak Attacks . | . . . . Combat Hostiles . | . . . . Follow-up Attacks . | . . . . Damage Inflicted 79 | 24 . . 55 Guns 79 | 24 . . 55 Cannons . | . . . . Explosions . | . . . . Melee . | . . . . Ramming . | . . . . Kinetic 55 | . . . 55 Thermal 24 | 24 . . . Explosive . | . . . . Electromagnetic . | . . . . Impact . | . . . . Slashing . | . . . . Piercing . | . . . . Highest Corruption 5 | . . . 5 Average Corruption 2 | . . . 2 Corruption Purged . | . . . . Corruption Blocked . | . . . . Effects 2 | . . . 2 Message Errors 1 | . . . 1 Matter Fused 1 | . . . 1 Overload Shots . | . . . . Overflow Damage . | . . . . Projectiles . | . . . . Explosions . | . . . . Melee . | . . . . Knockbacks . | . . . . Impact . | . . . . Kinetic . | . . . . Secondary . | . . . . Self-Inflicted Damage . | . . . . Shots . | . . . . Rammed . | . . . . Targets Rammed . | . . . . Kicked . | . . . . Crushed . | . . . . Highest Temperature 23 | 20 . . 23 Average Temperature 9 | 10 . . 9 Received Heat Transfer 90 | . . . 90 Siege Activations . | . . . . Martial Activations . | . . . . Shielding Activations . | . . . . Robots Disrupted . | . . . . Combat Hostiles . | . . . . Robots Corrupted . | . . . . Combat Hostiles . | . . . . Parts Fried . | . . . . Impact Corruptions . | . . . . Robots Melted . | . . . . Combat Hostiles . | . . . . Parts Melted . | . . . . Heat Transferred 148 | 148 . . . Parts Sabotaged . | . . . . Parts Stolen . | . . . . Parts Stripped . | . . . . Power Chain Reactions . | . . . . Alert | -11 -10 -10 -9 ------- Run | Yrd Mat Sub Scr Maximum Alert Level . | . . . . Low Security (%) 100 | 100 100 . . Level 1 . | . . . . Level 2 . | . . . . Level 3 . | . . . . Level 4 . | . . . . Level 5 . | . . . . High Security . | . . . . Max Security . | . . . . Peak Influence . | . . . . Initial . | . . . . Average . | . . . . Influence Increases . | . . . . Influence Decreases . | . . . . Squads Dispatched . | . . . . Investigation . | . . . . Extermination . | . . . . Reinforcement . | . . . . Assault . | . . . . Garrison . | . . . . Intercept . | . . . . Searches Triggered . | . . . . Construction Impeded . | . . . . Haulers Reinforced . | . . . . Active Scanning Responses . | . . . . Cargo Convoy Interrupts . | . . . . Stealth | -11 -10 -10 -9 --------- Run | Yrd Mat Sub Scr Distress Signals . | . . . . Communications Jammed . | . . . . Distress Signals . | . . . . Times Spotted 13 | . . . 13 Peak Tracking Total 11 | . . . 11 Tactical Retreats 2 | . . . 2 Traps | -11 -10 -10 -9 ------- Run | Yrd Mat Sub Scr Traps Triggered . | . . . . Indirectly . | . . . . Trap Hack Attempts . | . . . . Triggered . | . . . . Disarmed . | . . . . Reprogrammed . | . . . . Reused . | . . . . Traps Extracted . | . . . . Installed . | . . . . Triggered . | . . . . Machines | -11 -10 -10 -9 ---------- Run | Yrd Mat Sub Scr Machines Disabled . | . . . . Max in Single Turn . | . . . . Machines Repaired . | . . . . Machines Dismantled . | . . . . Machines Sabotaged . | . . . . Overloaded Fab Kills . | . . . . Hacking | -11 -10 -10 -9 --------- Run | Yrd Mat Sub Scr Machines Accessed 10 | . . 1 9 Terminals . | . . . . Fabricators . | . . . . Repair Stations . | . . . . Recycling Units . | . . . . Scanalyzers . | . . . . Garrison Access . | . . . . Total Hacks 79 | . . 9 70 Successful 79 | . . 9 70 Failed . | . . . . Catastrophic . | . . . . Database Lockouts . | . . . . Manual . | . . . . Terminals . | . . . . Fabricators . | . . . . Repair Stations . | . . . . Recycling Units . | . . . . Scanalyzers . | . . . . Garrison Access . | . . . . Terminal Hacks 79 | . . 9 70 Record 70 | . . 8 62 Robot Analysis 7 | . . . 7 Proto ID Catalog 2 | . . 1 1 Fabricator Hacks . | . . . . Repair Station Hacks . | . . . . Recycling Unit Hacks . | . . . . Scanalyzer . | . . . . Garrison Access Hacks . | . . . . Unauthorized Hacks . | . . . . Terminals . | . . . . Fabricators . | . . . . Repair Stations . | . . . . Recycling Units . | . . . . Scanalyzers . | . . . . Garrison Access . | . . . . Data Cores Recovered . | . . . . Used . | . . . . Hacking Detections . | . . . . Full Trace Events . | . . . . Feedback Events . | . . . . Feedback Blocked . | . . . . Robot Schematics Acquired . | . . . . Robots Built . | . . . . Authchips . | . . . . Time . | . . . . Total Robot Build Rating . | . . . . Part Schematics Acquired . | . . . . Parts Built . | . . . . Authchips . | . . . . Time . | . . . . Total Part Build Rating . | . . . . Part Studies Acquired . | . . . . Parts Repaired . | . . . . Time . | . . . . Parts Recycled . | . . . . Recycled Matter . | . . . . Retrieved Matter . | . . . . Retrieved Components . | . . . . Parts Scanalyzed . | . . . . Part Schematics Acquired . | . . . . Parts Damaged . | . . . . Bothacking | -11 -10 -10 -9 ------------ Run | Yrd Mat Sub Scr Used RIF Installer . | . . . . Robots Hacked . | . . . . Non-combat . | . . . . Combat . | . . . . Robot Hacks Applied . | . . . . Relay Couplers Released . | . . . . Fabnet Peak Effective % . | . . . . Robots Rewired . | . . . . Allies Hacked . | . . . . Hacks Repelled . | . . . . Allies | -11 -10 -10 -9 -------- Run | Yrd Mat Sub Scr Total Allies . | . . . . Largest Group . | . . . . Highest-Rated Group . | . . . . Highest-Rated Ally . | . . . . Total Orders . | . . . . Ally Attacks . | . . . . Total Damage . | . . . . Kills . | . . . . Allies Corrupted . | . . . . Allies Melted 5 | . . . 5 Intel | -11 -10 -10 -9 ------- Run | Yrd Mat Sub Scr Active Infowar (turns) 2625 | . . . 2625 Sensors 2570 | . . . 2570 Jamming 55 | . . . 55 Robot Analysis Total 7 | . . . 7 Derelict Logs Recovered 3 | . . 2 1 Drone Launches . | . . . . Drone Recoveries . | . . . . Exploration | -11 -10 -10 -9 ------------- Run | Yrd Mat Sub Scr Turns Passed 3343 | 56 146 328 2813 Spaces Moved 2295 | 39 69 192 1995 Core 61 | 4 . . 57 Treads . | . . . . Legs 2234 | 35 69 192 1938 Wheels . | . . . . Hover . | . . . . Flight . | . . . . Fastest Speed 50 | 50 120 120 50 Average Speed 118 | 112 120 120 117 Slowest Speed 120 | 120 120 120 120 Overloaded Moves . | . . . . Propulsion Burnouts . | . . . . Robots Hopped . | . . . . Potential Cave-ins . | . . . . Cave-ins Triggered . | . . . . Exploration Rate (%) 33 | 4 24 17 89 Regions Visited 3 Branch Regions 2 Pre-discovered Areas . | . . . . Known Exits Taken . | . . . . Unknown Exits Taken 3 | 1 1 1 . Scrap Searched 13 | . . 3 10 Spaces Dug . | . . . . Terrain Destroyed . | . . . . Melee . | . . . . Projectile . | . . . . AOE . | . . . . Terrain Rammed . | . . . . Walls Destroyed . | . . . . Machines Disabled . | . . . . Actions | -11 -10 -10 -9 --------- Run | Yrd Mat Sub Scr Total 2920 | 46 132 290 2452 Wait 552 | . 64 93 395 Move 2292 | 38 68 191 1995 Hop . | . . . . Pick Up 22 | . . 4 18 Fast Attach 10 | 6 . . 4 Attach 8 | . . . 8 Detach 4 | . . 2 2 Swap 5 | . . . 5 Drop 16 | . . . 16 Fire 10 | 2 . . 8 Melee . | . . . . Ram . | . . . . Kick . | . . . . Crush . | . . . . Escape Stasis . | . . . . Rewire . | . . . . Trap . | . . . . Miscellaneous 1 | . . . 1 Route ------- -11/Scrapyard -10/Materials (discovered 2 exits: [*Min] / *Sub) -10/Subcaves -9/Scraptown (discovered 2 exits: [*Fac x2]) History --------- Turn | Location | Event 6 | -11/Scrapyard | Discovered new exit (range 15) 57 | -11/Scrapyard | Entered Materials 58 | -10/Materials | Met a group of wandering Federalists 106 | -10/Materials | Discovered new exit (range 14) 117 | -10/Materials | Discovered new exit (range 9) 203 | -10/Materials | Entered Subcaves 203 | -10/Subcaves | Accompanied by 1 ally 204 | -10/Subcaves | Continued accompanying wandering Federalists (6) 204 | -10/Subcaves | Approached by a straggling Scientist 208 | -10/Subcaves | Learned Materials interactive machine intel 297 | -10/Subcaves | Shifting Twisted Machinery released Flamer 301 | -10/Subcaves | Build established: Mutant 389 | -10/Subcaves | Learned 4 Materials zone layouts 453 | -10/Subcaves | Wandering Federalist uncovered a shortcut to Scraptown 454 | -10/Subcaves | Visited 4L-MR0's lab 531 | -10/Subcaves | Entered Scraptown 963 | -9/Scraptown | Discovered new exit (range 5) 1067 | -9/Scraptown | Scanned Subdweller tech in exchange for log data 1100 | -9/Scraptown | Visited Awakened 1143 | -9/Scraptown | Visited Assassins FH 1180 | -9/Scraptown | Visited Cyclists 1236 | -9/Scraptown | Visited TADAMA 1270 | -9/Scraptown | Visited UFD Registry 1270 | -9/Scraptown | Registered with UFD as "Metaglider" 1301 | -9/Scraptown | Visited IN-MT5's Study 1355 | -9/Scraptown | Entered Cyclist Reading Room 1791 | -9/Scraptown | Visited Bundlers 1974 | -9/Scraptown | Visited Cartography Club 2689 | -9/Scraptown | Visited A0-MCA Data Center 2697 | -9/Scraptown | Given an A- rating by A0-MCA 2701 | -9/Scraptown | Found A0-MCA's Component Scanner 2729 | -9/Scraptown | Visited Junk Repository 2789 | -9/Scraptown | Found Scrap Suit 2915 | -9/Scraptown | Discovered new exit (range 4) 2952 | -9/Scraptown | Visited Science Guys 3012 | -9/Scraptown | Visited Analyses Database 3082 | -9/Scraptown | Met Optimus 3082 | -9/Scraptown | Accepted into 0bPrime 3142 | -9/Scraptown | Visited Supply Room 3159 | -9/Scraptown | Visited Curators Association 3203 | -9/Scraptown | Civil war broke out across Scraptown 3298 | -9/Scraptown | Released all parts (5) 3331 | -9/Scraptown | Core integrity fell below 50% 3344 | -9/Scraptown | Core integrity fell below 20% 3344 | -9/Scraptown | Destroyed by U5-AGF(g) with Salvaging Laser Last Messages --------------- Penetrated by Bolt. SO-FM4(j) switches sides. 8K-VIN(E) destroyed. PD-YBR(E) destroyed. 8B-U1B(p) destroyed. Slug penetrates SO-FM4(j). Q1-QY2(p): "Can't we all just get along?" Optimus: This place isn't worth defending, let's get out of here, Metaglider! Our real resources are elsewhere, after all. System corrupted: Matter fused (-7). SO-FM4(j) suffers critical hit (Destroy). Bolt penetrates Reinforced Barrier. Acquired VSS Leg. SO-FM4(j) destroyed. Q1-QY2(p) destroyed. Bolt penetrates Reinforced Barrier. Acquired 27 matter. Bolt penetrates Reinforced Barrier. Slug penetrates 9C-VZS(h). Map ----- +----------------------------------------------------+ | #???????#" [%! | | #???????#" | | #???????#" | | #???????#" !%* | | ######### ####!=[! #????####" * [ | | ?# ## [%! #????"""" =% """"" "" "" | | ?#" "## *=! #????"""" [! """""""" "" | | ?#X "## #???#"""" "###### ## | | ?#" "## #???#"""" * ""# | | ?######## #### #???#"""" %= ""# | | ??????#"# #"## ###?#"""" =!= ""# "" "" | | ??????# #" ! ! ""#"#"""" =%/ ""# "" " | | ??????#" "" =%[=%""""#"""" =! ""# " | | ??????#" X "" = !*""#######[%! "" "" | | ??????#""#"""" [=! g=!###?????#hj "" "" | | ??????#######"=%!%!g =%######### ""# " | | ????????????#;!=!*[ *[ =%h ""# "" " | | ?????????????# =%[ !! ""# "" "" | | ?????????????# !! * ""# | | ?????????????# !%[ !%= ""# | | ###########";# *=[TT ! ! ""###### ## | | !%%xTT [%= """"??"""""? | | ==!==%*[ ! """"?""""""? | | %*![![[% * %= ? | | *[%=== !*=%!* ? | | [! =%[![@ ? | | =[!!!!==[!#""""#" ? | | ![%=!!*3[!=#????#" ? | | % ![!*!=E=%=!#????#"""" " """""""???? | | # ##############%##!&!!####????####### ######????? | | ?????# *[!=#%=!#?????????????? ?????????? | | #???#""" = "#[!%#??????????????? ????????? | | "#???# " %"#!!*#???????????????? ???????? | | "" "#???# " "";%! #?????????????????????????? | | "" "#???# " """;%! #?????????????????????????? | | "" "#???# " ""#= #?????????????????????????? | | ?? "????###" k"" #?????????????????????????? | | ??# #??????" " "# #?????????????????????????? | | ??? #??????#"""""""# #?????????????????????????? | | ???????????######### #?????????????????????????? | | ???????????????????# #?????????????????????????? | | ????????############ #?????????????????????????? | | ????????#""""""""""" #?????????????????????????? | | ????????#""""" """"" #?????????????????????????? | | ??#######"""" " "" #??????????????????????""## | | ??# #??????????????????? | | ### #####"" "" "" " #??????????????????? | | """ "#??#""""""""""" #??????????????????? | | """ "#??#""""""""""" #??????????????????????""## | | """ "#??############ #?????????????????????????? | +----------------------------------------------------+ Best States ------------- Heat Dissipation 25 Energy Generation 18 Energy Capacity 250 Matter Stores 300 Matter Capacity 300 Sight Range 16 Robot Scan Range 14 Terrain Scan Density 10 Jamming Range 12 Additional Mass Support 6 Evasion (%) 55 Item Schematics ----------------- None Robot Schematics ------------------ None Fabricated ------------ Nothing Repaired ---------- Nothing Studied --------- None Alien Tech Used ----------------- None Achievements -------------- Armchair Analyst Bob, First Of His Name Mistaken Identity Challenges ------------ None Game ------ Seed LongswordGatlingAutocannon Manual? 0 Play Time 00:36:42 Cumulative 23.4 hours Start 2026.04.24 @ 00:21:01 End 2026.04.24 @ 00:58:11 Sessions 1 Manual Loads 0 Difficulty Rogue Special Mode None Game No. 36 Rogue 36 Adventurer 0 Explorer 0 Win Type - Total 0 Types 0/0/0/0/0/0/0/0/0/0 Lore% 22 Gallery% 22 Achievement% 21 Wizard Run 0 Options --------- Layout 1 ASCII 0 Keyboard 0 Movement Numpad Keybinds 0 Fullscreen 1 Font 32/SmallcapsGlow Map View 50x35 Zoom Use 0% Tactical HUD 0 Map Filters NONE Filters NONE Steam 1 RUN: fc9f9759-ea3c-4e72-b638-295ed44dc3f4